bitfinex-derivatives/quotes_ETHF0:USTF0_20250627
["timestamp","ask_amount","ask_price","bid_price","bid_amount"]
[1750985709608,1.05471129,2404.0,2403.9,33.102]
[1750985710000,1.88628129,2404.0,2403.9,33.102]
[1750985710204,1.88628129,2404.0,2403.8,3.2078]
[1750985710504,0.83161,2403.9,2403.8,36.3048]
[1750985710707,0.83161,2403.9,2403.8,7.009]
[1750985711004,1.88614278,2403.9,2403.5,55.9149443]
[1750985711199,0.83161,2403.9,2403.7,33.09]
[1750985711401,0.83162,2403.9,2403.7,33.09]
[1750985711806,1.4756,2403.8,2403.5,7.01]
[1750985712109,2.30724,2403.8,2403.5,7.01]
[1750985712811,1.4756,2403.8,2403.5,7.01]
[1750985713013,0.83159,2404.0,2403.5,7.84173]
[1750985713212,1.05416339,2403.9,2403.5,14.3881243]
[1750985713406,1.05416339,2403.8,2403.5,13.5563943]
[1750985713713,0.83159,2404.0,2403.5,39.6203943]
[1750985713913,1.05396735,2403.9,2403.6,0.83169]
[1750985714208,0.7356,2404.2,2403.7,4.03948]
[1750985714406,1.05374392,2404.1,2403.8,28.24224]
[1750985714607,1.05374392,2404.0,2403.8,27.4106]
[1750985714809,0.7356,2404.2,2403.9,0.7094]
[1750985715013,1.05378442,2404.1,2403.9,2.058]
[1750985715308,1.56609,2404.3,2403.9,2.058]
[1750985715309,1.05378442,2404.0,2403.9,2.058]
[1750985715509,1.05378442,2404.0,2403.9,2.8896]
[1750985715706,1.5661,2404.3,2403.9,9.068]
[1750985715906,1.88560474,2404.2,2403.9,9.068]
[1750985716099,1.05409474,2404.1,2403.9,9.068]
[1750985716305,1.05409474,2404.0,2403.9,9.068]
[1750985716905,1.05409474,2404.0,2403.9,9.89961]
[1750985718008,4.03925,2404.4,2403.9,9.068]
[1750985718215,1.0540205,2404.3,2404.1,0.83152]
[1750985718510,1.54227,2404.6,2404.2,1.4016]
[1750985718719,1.05717681,2404.5,2404.2,2.23309]
[1750985718918,1.05717681,2404.4,2404.3,8.4116]
[1750985719215,4.03923,2404.4,2404.3,7.01]
[1750985719419,5.09640681,2404.4,2404.3,7.01]
[1750985721919,9.26497681,2404.4,2403.9,0.7094]
[1750985722115,1.05717681,2404.3,2404.0,0.83156]
[1750985722820,1.05717681,2404.3,2404.2,0.8315]
[1750985723524,1.05717681,2404.3,2404.2,7.7775]
[1750985724821,1.05717681,2404.3,2404.2,6.946]
[1750985725918,1.05717681,2404.3,2404.2,7.7775]
[1750985726218,1.05717681,2404.3,2403.8,0.7078]
[1750985726219,2.07877,2404.2,2403.3,3.2078]
[1750985726422,0.83187,2403.2,2402.9,6.5089324]
[1750985726621,3.2078,2403.5,2402.7,3.3011324]
[1750985726924,3.2078,2402.9,2402.6,3.3011324]
[1750985727124,0.83206,2402.6,2402.5,3.3011324]
[1750985727322,4.03986,2402.6,2402.3,6.946]
[1750985727523,2.1698,2402.8,2402.3,6.946]
[1750985727724,3.2078,2402.6,2402.3,6.946]
[1750985727926,1.06001098,2402.5,2402.3,6.946]
[1750985728127,3.2078,2402.6,2402.3,6.946]
[1750985729033,3.2078,2402.9,2402.5,5.1811943]
[1750985729219,1.05829882,2402.8,2402.7,0.83202]
[1750985729425,3.2078,2403.2,2402.8,0.83197]
[1750985729729,1.05773787,2403.1,2402.8,1.4603]
[1750985729929,1.4547,2403.4,2402.9,0.83192]
[1750985730233,3.2078,2403.3,2402.9,0.83192]
[1750985730424,2.8953,2403.4,2403.0,0.83192]
[1750985730625,0.83166,2403.8,2403.3,5.1811943]
[1750985730832,3.2078,2403.6,2403.1,12.9600643]
[1750985731020,3.2078,2403.6,2402.8,30.0402]
[1750985731021,3.2078,2403.2,2402.8,3.9132]
[1750985731325,0.83193,2403.0,2402.8,3.2078]
[1750985731727,2.9641,2403.1,2402.8,3.2078]
[1750985732127,0.83192,2403.0,2402.8,3.2078]
[1750985732333,3.2078,2402.9,2402.7,6.947]
[1750985732830,4.03976,2402.9,2402.7,6.947]
[1750985734541,1.5235,2403.1,2402.7,7.77901]
[1750985734927,1.5235,2403.1,2402.7,6.947]
[1750985734928,0.6916,2403.1,2402.7,6.947]
[1750985735130,3.2078,2403.5,2402.9,5.1811943]
[1750985735325,0.83169,2403.7,2403.2,6.0130443]
[1750985735530,1.05741367,2403.6,2403.3,0.83181]
[1750985735725,1.05741367,2403.5,2403.3,0.83181]
[1750985735925,3.2078,2403.8,2403.3,1.3702]
[1750985736235,1.05748433,2403.7,2403.4,0.83177]
[1750985736432,3.2078,2403.8,2403.5,5.1811943]
[1750985736637,6.49312543,2404.3,2403.6,8.3182]
[1750985736837,1.05750574,2404.2,2403.8,6.0128243]
[1750985737040,6.49311543,2404.3,2404.0,6.0127643]
[1750985737041,1.05750574,2404.1,2404.0,6.0127643]
[1750985737239,1.0578297,2404.1,2404.0,15.3369943]
[1750985737438,3.2078,2404.3,2404.2,0.8315]
[1750985737635,4.26565559,2404.3,2404.2,0.8315]
[1750985738034,4.26565559,2404.3,2404.1,2.20171]
[1750985738342,1.05785559,2404.2,2404.1,2.20174]
[1750985738737,0.83137,2404.6,2404.1,2.20174]
[1750985738938,0.8315,2404.3,2404.1,6.948]
[1750985739135,1.4749,2404.5,2404.1,6.948]
[1750985739341,1.05747318,2404.4,2404.1,6.948]
[1750985739638,2.30632,2404.5,2404.1,8.3768]
[1750985740246,2.30632,2404.5,2403.8,0.7156]
[1750985740247,3.2078,2404.4,2403.8,0.7156]
[1750985740440,0.8316,2404.0,2403.6,5.8661943]
[1750985740640,0.8316,2404.0,2403.7,33.091]
[1750985740835,0.8316,2404.0,2403.6,5.8661943]
[1750985741040,0.83162,2403.9,2403.7,6.947]
[1750985742338,1.4749,2404.0,2403.7,6.947]
[1750985742541,0.83163,2403.9,2403.7,6.947]
[1750985742838,2.3065,2404.0,2403.7,6.947]
[1750985743747,1.4749,2404.0,2403.7,6.947]
[1750985744039,4.03944,2403.8,2403.7,6.947]
[1750985744435,4.6678,2403.8,2403.7,6.947]
[1750985744634,3.2078,2403.8,2403.7,12.1281943]
[1750985745141,3.2078,2403.8,2403.7,12.9598743]
[1750985745659,3.2078,2403.8,2403.7,12.1281943]
[1750985745839,3.2078,2403.8,2403.7,12.9598743]
[1750985746145,3.2078,2403.8,2403.7,12.1281943]
[1750985746544,3.2078,2403.8,2403.7,12.9598743]
[1750985747146,3.2078,2403.8,2403.7,12.1281943]
[1750985747347,3.2078,2403.8,2403.7,12.9598743]
[1750985748042,1.3757,2404.4,2404.0,0.83156]
[1750985748246,1.05692604,2404.3,2404.1,6.947]
[1750985748438,2.7966,2404.4,2404.1,6.947]
[1750985748644,1.06082052,2404.3,2404.1,6.947]
[1750985748839,3.62805,2404.4,2404.1,6.947]
[1750985749041,1.89230052,2404.3,2404.1,6.947]
[1750985749347,0.83147,2404.3,2404.1,6.947]
[1750985750047,0.83149,2404.3,2404.1,6.947]
[1750985750550,1.3757,2404.4,2404.1,6.947]
[1750985750747,0.6681,2404.4,2404.1,9.20323]
[1750985750940,0.83144,2404.4,2404.1,8.3717]
[1750985751143,0.83141,2404.5,2404.1,8.3717]
[1750985751344,1.06063285,2404.4,2404.1,8.3717]
[1750985751544,0.83141,2404.5,2404.1,8.3717]
[1750985751747,1.06062282,2404.4,2404.1,8.3717]
[1750985752042,0.83141,2404.5,2404.1,8.3717]
[1750985752246,1.06062401,2404.4,2404.1,8.3717]
[1750985752553,0.8314,2404.5,2404.1,8.3717]
[1750985752751,1.06063082,2404.4,2404.1,8.3717]
[1750985752951,0.8314,2404.5,2404.1,8.3717]
[1750985753155,1.06062835,2404.4,2404.1,8.3717]
[1750985753348,0.83144,2404.4,2404.1,8.3717]
[1750985753847,0.83142,2404.5,2404.1,8.3717]
[1750985754552,0.83144,2404.4,2404.1,8.3717]
[1750985755050,0.83148,2404.3,2404.1,6.947]
[1750985755250,0.83153,2404.2,2403.9,33.027]
[1750985755458,0.83154,2404.1,2403.9,33.027]
[1750985756258,2.20333,2404.2,2403.9,33.027]
[1750985756457,0.83154,2404.1,2403.9,33.027]
[1750985756754,2.20332,2404.2,2403.9,33.027]
[1750985756954,3.2078,2404.6,2403.9,33.85858]
[1750985757256,0.83149,2404.3,2403.9,33.85858]
[1750985758257,0.8315,2404.2,2403.9,33.027]
[1750985758457,2.2825,2404.2,2403.9,33.027]
[1750985758757,1.451,2404.2,2403.9,33.027]
[1750985758956,0.83149,2404.3,2403.9,33.8586]
[1750985759654,3.2078,2404.6,2404.1,0.83153]
[1750985759957,0.83145,2404.4,2403.9,39.0397843]
[1750985760161,0.83147,2404.3,2403.9,39.0397843]
[1750985760356,0.83151,2404.2,2403.9,38.2081943]
[1750985760553,4.03928,2404.3,2403.9,38.2081943]
[1750985760859,4.03928,2404.3,2403.9,39.0398043]
[1750985761060,4.03928,2404.3,2403.9,33.027]
[1750985761749,4.03928,2404.3,2403.9,33.85861]
[1750985761955,2.17562,2404.5,2403.9,38.2081943]
[1750985762154,1.06165569,2404.4,2404.1,0.83153]
[1750985762357,1.06165569,2404.3,2404.0,4.5392]
[1750985762551,4.03919,2404.6,2404.1,0.7204]
[1750985762762,1.06186704,2404.5,2404.1,2.88332]
[1750985762962,1.06186704,2404.4,2404.1,2.88332]
[1750985763164,1.06186704,2404.3,2404.2,26.046]
[1750985763662,4.03918,2404.6,2404.2,26.8775]
[1750985763851,1.06250723,2404.5,2404.2,26.8775]
[1750985764056,1.06250723,2404.4,2404.2,26.8775]
[1750985764363,1.06250723,2404.3,2404.2,26.8775]
[1750985764564,1.06250723,2404.3,2404.2,31.2271943]
[1750985764766,1.06322984,2404.5,2404.3,0.83145]
[1750985765065,1.06323049,2404.4,2404.2,31.2271943]
[1750985765261,1.06323049,2404.3,2404.2,31.2271943]
[1750985765468,1.06323049,2404.3,2404.2,32.0586943]
[1750985765666,1.06397488,2404.5,2404.3,0.83146]
[1750985765867,1.06397488,2404.4,2404.2,32.0586843]
[1750985766066,1.06397488,2404.3,2404.2,32.0586843]
[1750985766567,1.06397488,2404.3,2404.2,26.87749]
[1750985769164,1.06397488,2404.3,2404.2,26.8775]
[1750985770674,1.06397488,2404.3,2404.1,0.7204]
[1750985770875,1.06427746,2404.2,2403.8,6.96]
[1750985771078,1.06427746,2404.1,2403.8,6.96]
[1750985771271,2.7324,2404.2,2403.8,6.96]
[1750985771272,1.06427746,2404.0,2403.8,6.96]
[1750985771469,3.56393,2404.2,2403.8,6.96]
[1750985771470,1.06412544,2403.9,2403.8,6.96]
[1750985772377,1.06400303,2403.9,2403.8,7.79164]
[1750985772574,2.7324,2404.2,2403.8,9.25374]
[1750985772774,1.06397795,2404.1,2403.8,9.25374]
[1750985772974,1.06397795,2404.0,2403.8,9.25374]
[1750985773176,2.7324,2404.2,2403.8,9.25374]
[1750985773378,1.06434445,2404.1,2403.8,9.25374]
[1750985773580,1.06434445,2404.0,2403.8,8.4221]
[1750985773880,1.06434445,2403.9,2403.8,6.96]
[1750985774678,1.06434445,2403.9,2403.8,7.79164]
[1750985775672,6.06434445,2403.9,2402.8,3.3011324]
[1750985775874,0.83189,2403.1,2402.8,6.96]
[1750985776376,1.07492534,2403.0,2402.8,6.96]
[1750985776576,0.83189,2403.1,2402.8,6.96]
[1750985776877,0.83195,2402.9,2402.8,6.96]
[1750985777175,0.83203,2402.7,2402.2,11.00098]
[1750985777480,0.83203,2402.7,2402.2,10.1688]
[1750985777679,0.83203,2402.7,2402.2,7.79319]
[1750985777882,2.23903,2402.7,2402.2,33.81219]
[1750985778081,1.407,2402.7,2402.3,0.83216]
[1750985778584,2.23903,2402.7,2402.2,32.98]
[1750985778774,1.407,2402.7,2402.2,32.98]
[1750985779074,3.2078,2402.8,2402.6,5.1811943]
[1750985779283,3.91223543,2403.3,2402.6,5.1811943]
[1750985779284,4.0397,2403.1,2402.6,5.1811943]
[1750985779471,1.07400423,2403.0,2402.6,13.4905943]
[1750985779676,4.0397,2403.1,2402.6,13.4905943]
[1750985779881,1.07401699,2403.0,2402.6,13.4905943]
[1750985780083,4.0397,2403.1,2402.6,13.4905943]
[1750985780283,3.2078,2403.1,2402.6,14.3226343]
[1750985780581,3.2078,2403.1,2402.6,15.0479343]
[1750985780973,4.03971,2403.1,2402.6,14.2158943]
[1750985781579,4.03969,2403.1,2402.6,15.0479443]
[1750985781981,0.83192,2403.0,2402.6,14.2158943]
[1750985782180,4.03969,2403.1,2402.6,15.0479443]
[1750985782573,0.83192,2403.0,2402.7,32.979]
[1750985783371,3.2078,2403.1,2402.7,32.979]
[1750985783788,3.2078,2403.1,2402.7,34.3546]
[1750985783988,3.2078,2403.1,2402.8,1.3756]
[1750985784181,4.03969,2403.1,2402.8,1.3756]
[1750985784786,0.83207,2402.6,2402.3,0.6943]
[1750985784991,0.83209,2402.5,2402.4,6.906]
[1750985785191,0.83207,2402.6,2402.4,6.906]
[1750985785581,3.2078,2402.7,2402.4,6.906]
[1750985785781,4.03982,2402.7,2402.4,6.906]
[1750985786080,3.2078,2402.7,2402.4,6.906]
[1750985786487,4.03983,2402.7,2402.4,6.906]
[1750985786886,4.5945,2403.0,2402.4,7.73813]
[1750985787188,4.5945,2403.0,2402.4,9.14083]
[1750985787390,5.42644,2403.0,2402.6,5.1811943]
[1750985787583,4.5945,2403.0,2402.6,5.1811943]
[1750985787784,4.5945,2403.0,2402.6,6.0132543]
[1750985787984,4.5945,2403.0,2402.6,6.5435943]
[1750985788189,0.83198,2402.9,2402.6,5.1811943]
[1750985788484,0.83198,2402.9,2402.5,26.82809]
[1750985788686,4.5945,2403.0,2402.1,0.6839]
[1750985788687,3.2078,2402.7,2402.1,0.6839]
[1750985788887,0.83211,2402.5,2402.1,0.6839]
[1750985789086,3.2078,2402.3,2402.0,6.907]
[1750985789690,4.666,2402.3,2402.0,6.907]
[1750985789879,5.49818,2402.3,2402.0,6.907]
[1750985790688,2.29038,2402.3,2402.0,6.907]
[1750985790882,0.83215,2402.4,2402.0,12.0881943]
[1750985791089,0.83217,2402.3,2402.0,12.0881943]
[1750985791490,1.3875,2402.5,2402.0,12.0881943]
[1750985791793,0.83218,2402.3,2402.0,12.0881943]
[1750985792591,0.83215,2402.4,2402.0,15.2959943]
[1750985792792,0.83213,2402.4,2402.0,16.6559943]
[1750985793191,2.21961,2402.5,2402.0,17.4882543]
[1750985793404,0.83213,2402.4,2402.0,16.6559943]
[1750985793899,1.3875,2402.5,2402.0,16.6559943]
[1750985794087,0.83228,2402.0,2401.7,6.907]
[1750985794397,3.2078,2402.1,2401.7,6.907]
[1750985794593,3.2078,2402.4,2401.9,5.1811943]
[1750985794799,3.2078,2403.0,2402.2,8.3889943]
[1750985794989,0.83196,2402.9,2402.5,5.1811943]
[1750985795294,4.75994,2403.0,2402.5,6.0132743]
[1750985795492,4.75994,2403.0,2402.5,5.1811943]
[1750985795695,0.83196,2402.9,2402.5,5.1811943]
[1750985796690,3.2078,2402.7,2401.9,6.908]
[1750985796902,0.83221,2402.2,2401.9,6.908]
[1750985797091,0.6686,2402.1,2401.9,6.908]
[1750985797485,2.0563,2402.1,2401.9,6.908]
[1750985797898,2.0563,2402.1,2401.7,0.83235]
[1750985798094,2.88854,2402.1,2401.7,6.908]
[1750985798796,2.0563,2402.1,2401.7,6.908]
[1750985799100,0.6686,2402.1,2401.7,9.07895]
[1750985799301,0.6686,2402.1,2401.7,8.2466]
[1750985799497,0.6686,2402.1,2401.6,3.2078]
[1750985799697,0.83236,2401.8,2401.7,6.908]
[1750985799894,4.04016,2401.8,2401.7,6.908]
[1750985800789,3.2078,2401.8,2401.7,6.908]
[1750985801403,4.70864,2402.1,2401.7,7.74037]
[1750985801699,4.70864,2402.1,2401.8,0.83232]
[1750985801700,3.8764,2402.1,2401.8,0.83232]
[1750985802195,3.2078,2402.1,2401.9,0.83227]
[1750985802400,0.6937,2402.3,2401.8,2.1965]
[1750985802694,5.1811943,2403.0,2401.8,2.1965]
[1750985802695,3.2078,2403.0,2402.2,3.2078]
[1750985802897,3.2078,2403.0,2402.3,35.1318]
[1750985802898,1.07608423,2402.9,2402.3,35.1318]
[1750985803201,1.07608423,2402.9,2402.5,0.83207]
[1750985803202,1.07608423,2402.8,2402.5,0.83207]
[1750985803500,1.07608423,2402.8,2402.5,3.2078]
[1750985803696,1.07608423,2402.8,2402.4,0.83212]
[1750985803998,1.07608423,2402.8,2402.4,1.3385]
[1750985804400,3.52991966,2402.8,2402.4,2.17062]
[1750985804597,1.07608423,2402.7,2402.4,5.37842]
[1750985804801,1.07608423,2402.7,2402.4,4.5463]
[1750985805099,1.07608423,2402.7,2402.5,0.83209]
[1750985805294,3.52991966,2402.7,2402.5,1.3385]
[1750985805492,1.07608423,2402.6,2402.5,1.3385]
[1750985805807,1.07608423,2402.6,2402.5,2.17059]
[1750985806098,1.07608423,2402.7,2402.5,2.17059]
[1750985806301,0.83196,2402.9,2402.5,1.3385]
[1750985806605,1.91295716,2402.8,2402.5,6.908]
[1750985806797,1.91297716,2402.7,2402.5,6.908]
[1750985807102,1.08095716,2402.6,2402.5,6.908]
[1750985807303,4.28875716,2402.6,2402.1,6.908]
[1750985807495,1.75635716,2402.5,2402.1,6.908]
[1750985807696,1.08095716,2402.4,2402.1,8.2598]
[1750985807897,1.08095716,2402.3,2402.1,8.2598]
[1750985808195,1.50749,2402.5,2402.1,8.2598]
[1750985808397,1.08092062,2402.4,2402.1,9.09203]
[1750985808600,1.08092062,2402.3,2402.1,9.09203]
[1750985808798,2.90089,2402.5,2402.1,8.2598]
[1750985809106,1.08891224,2402.4,2402.1,8.2598]
[1750985809308,1.08891224,2402.3,2402.1,9.09201]
[1750985809505,2.9009,2402.5,2402.1,8.2598]
[1750985809708,1.08795584,2402.4,2402.1,8.2598]
[1750985810004,1.08795584,2402.3,2402.1,9.09202]
[1750985810207,0.83209,2402.5,2402.1,9.09202]
[1750985810409,1.08826116,2402.4,2402.1,9.09202]
[1750985810604,1.08826116,2402.3,2402.0,50.77725]
[1750985810908,0.83214,2402.4,2402.1,33.134]
[1750985811117,1.08823209,2402.3,2402.1,33.134]
[1750985811404,0.83214,2402.4,2402.1,33.134]
[1750985811598,1.08833757,2402.3,2402.1,6.908]
[1750985811793,1.08830225,2402.2,2402.1,6.908]
[1750985813306,1.08830225,2402.2,2402.1,7.74023]
[1750985813504,1.92050225,2402.2,2402.0,49.945]
[1750985813807,0.83218,2402.3,2402.1,6.909]
[1750985814002,1.08836605,2402.2,2402.1,6.909]
[1750985814597,1.92056605,2402.2,2402.1,6.909]
[1750985815304,1.08836605,2402.2,2402.1,6.909]
[1750985815606,1.92056605,2402.2,2402.1,6.909]
[1750985816208,4.07916605,2402.2,2402.1,6.909]
[1750985816703,3.24696605,2402.2,2401.8,7.031]
[1750985816898,3.2078,2402.0,2401.8,7.031]
[1750985817099,1.92066605,2401.9,2401.8,7.031]
[1750985817408,1.92066605,2401.9,2401.4,4.5831]
[1750985817409,0.83252,2401.3,2401.0,7.031]
[1750985817603,4.04032,2401.3,2401.0,7.031]
[1750985817908,3.2078,2401.3,2401.0,7.031]
[1750985818305,3.2078,2401.6,2401.0,7.031]
[1750985818603,0.83257,2401.2,2401.0,7.031]
[1750985818800,0.8325,2401.4,2401.0,7.86359]
[1750985819004,1.92020645,2401.3,2401.0,8.4259]
[1750985819197,2.1354,2401.5,2400.8,3.2078]
[1750985819402,0.83251,2401.3,2400.9,7.032]
[1750985819606,2.1354,2401.5,2400.9,8.4269]
[1750985819809,1.08681885,2401.4,2401.0,7.032]
[1750985820110,0.83255,2401.2,2401.0,7.032]
[1750985820311,1.91939885,2401.1,2401.0,7.032]
[1750985820505,1.91939885,2401.1,2400.9,0.6809]
[1750985820711,0.83258,2401.1,2401.0,7.032]
[1750985820914,0.83258,2401.1,2400.9,0.6809]
[1750985820915,1.08697153,2401.1,2400.9,0.6809]
[1750985821215,4.04029,2401.4,2401.0,7.032]
[1750985821404,1.086951,2401.3,2401.0,7.032]
[1750985821604,1.086951,2401.2,2401.0,8.4558]
[1750985821805,3.2078,2401.4,2401.0,8.4558]
[1750985822004,1.08619428,2401.3,2401.1,4.74515]
[1750985822206,1.55619,2401.7,2401.2,1.4238]
[1750985822506,1.08568564,2401.6,2401.2,1.4238]
[1750985822705,1.91814564,2401.5,2401.2,1.4238]
[1750985823015,1.08568564,2401.4,2401.2,1.4238]
[1750985823217,3.02279,2401.7,2401.2,1.4238]
[1750985823416,1.08540727,2401.6,2401.2,2.25634]
[1750985823711,1.08540727,2401.5,2401.2,1.4238]
[1750985823909,1.08540727,2401.5,2401.3,1.3663]
[1750985824112,1.55619,2401.7,2401.4,7.033]
[1750985824313,1.08522154,2401.6,2401.4,7.033]
[1750985824508,1.08522154,2401.5,2401.4,7.033]
[1750985824711,1.08522154,2401.5,2401.3,8.3993]
[1750985825009,0.83244,2401.5,2401.3,7.033]
[1750985825314,0.7238,2401.7,2401.3,7.033]
[1750985825509,1.08574197,2401.6,2401.3,7.033]
[1750985825706,1.08574197,2401.5,2401.4,0.83247]
[1750985825907,1.08574197,2401.5,2401.4,1.3663]
[1750985826205,0.7238,2401.7,2401.4,1.3663]
[1750985826405,1.08573953,2401.6,2401.3,7.033]
[1750985826613,1.08569536,2401.5,2401.3,7.033]
[1750985826810,1.4196,2401.6,2401.3,7.033]
[1750985827011,1.08573642,2401.5,2401.3,7.033]
[1750985827312,2.25201,2401.6,2401.3,7.033]
[1750985827507,1.4196,2401.6,2401.3,7.033]
[1750985827703,4.29341914,2401.5,2401.4,7.034]
[1750985827906,5.12585914,2401.5,2401.4,7.034]
[1750985828519,5.12585914,2401.5,2401.1,3.9126]
[1750985828709,0.83247,2401.4,2401.1,3.9126]
[1750985828905,0.83247,2401.4,2401.1,10.9466]
[1750985829111,2.26397,2401.4,2401.1,10.9466]
[1750985829312,0.83254,2401.2,2401.1,7.7388]
[1750985829514,0.83254,2401.2,2401.1,7.034]
[1750985830314,1.4315,2401.4,2401.1,7.034]
[1750985830519,0.83262,2401.0,2400.6,0.83273]
[1750985830720,3.2078,2401.2,2400.7,7.034]
[1750985830909,1.4315,2401.4,2400.7,8.39995414]
[1750985831115,1.4315,2401.4,2400.8,8.3837]
[1750985831315,0.83252,2401.3,2400.9,0.83263]
[1750985831516,0.83252,2401.3,2400.9,2.18233]
[1750985831924,0.83254,2401.2,2400.9,1.3497]
[1750985832122,0.83252,2401.3,2400.9,2.18234]
[1750985832323,0.83256,2401.2,2400.9,1.3497]
[1750985832524,0.83256,2401.2,2400.8,7.86666]
[1750985832525,0.83259,2401.1,2400.8,7.034]
[1750985832821,3.2078,2401.2,2400.5,0.6807]
[1750985833121,3.2078,2400.9,2400.5,0.6807]
[1750985833320,0.8327,2400.8,2400.6,7.034]
[1750985833634,3.2078,2400.9,2400.6,7.034]
[1750985833822,3.2078,2400.9,2400.6,7.86673]
[1750985834118,0.8326,2401.1,2400.6,0.83273]
[1750985834311,3.2078,2401.2,2400.5,1.3964]
[1750985834312,0.83256,2401.2,2400.7,14.45525414]
[1750985834516,0.83256,2401.2,2400.8,1.3964]
[1750985834815,0.83256,2401.2,2400.8,2.22907]
[1750985835012,0.83253,2401.3,2400.9,0.83264]
[1750985835221,4.04029,2401.4,2400.9,2.89904]
[1750985835420,1.08424596,2401.3,2401.0,0.672]
[1750985835621,4.04029,2401.4,2401.1,7.034]
[1750985835825,1.08431499,2401.3,2401.1,7.034]
[1750985836025,4.04029,2401.4,2401.1,7.034]
[1750985836220,1.08465592,2401.3,2401.1,7.034]
[1750985836421,3.2078,2401.4,2401.2,1.3404]
[1750985836919,3.2078,2401.4,2401.2,2.17293]
[1750985837321,3.2078,2401.4,2401.3,1.3404]
[1750985837921,3.2078,2401.7,2401.0,0.672]
[1750985838124,0.83254,2401.3,2401.1,7.034]
[1750985838427,0.83254,2401.3,2401.2,7.034]
[1750985838618,1.08205379,2401.3,2401.2,7.034]
[1750985839119,0.83251,2401.3,2401.2,7.034]
[1750985839429,1.91458935,2401.3,2401.2,7.034]
[1750985840223,1.08207935,2401.3,2401.2,7.034]
[1750985840522,1.91458935,2401.3,2401.2,7.034]
[1750985840726,0.83251,2401.3,2401.2,7.034]
[1750985841318,1.9152542,2401.3,2401.2,7.034]
[1750985841715,1.0827442,2401.3,2401.2,7.034]
[1750985841921,1.9152542,2401.3,2401.2,7.034]
[1750985842115,1.0827442,2401.3,2401.2,7.034]
[1750985842522,0.83245,2401.5,2401.2,7.034]
[1750985842826,1.08303173,2401.4,2401.2,7.034]
[1750985843031,0.83244,2401.6,2401.2,7.86652]
[1750985843323,1.91543865,2401.5,2401.2,9.28292]
[1750985843627,1.08299865,2401.4,2401.2,9.28294]
[1750985844132,1.08299865,2401.4,2401.2,8.4504]
[1750985844429,1.91547865,2401.4,2401.2,8.4504]
[1750985844630,0.83248,2401.4,2401.2,8.4504]
[1750985844823,0.83256,2401.2,2401.0,0.672]
[1750985845024,0.83258,2401.1,2401.0,0.672]
[1750985845225,0.83256,2401.2,2401.0,7.035]
[1750985845426,0.83258,2401.1,2401.0,7.035]
[1750985845828,1.54152,2401.3,2401.0,7.035]
[1750985846026,1.08494578,2401.2,2401.0,8.4658]
[1750985846232,1.08568589,2401.1,2401.0,8.4658]
[1750985846734,0.83256,2401.2,2401.0,8.4658]
[1750985847234,1.08671768,2401.1,2401.0,8.4658]
[1750985848329,1.91929768,2401.1,2401.0,8.4658]
[1750985848534,1.08671768,2401.1,2401.0,8.4658]
[1750985850438,0.83248,2401.4,2401.0,9.29841]
[1750985850636,1.08662596,2401.3,2401.1,3.2078]
[1750985850935,0.83248,2401.4,2401.2,2.1471]
[1750985851137,1.08661405,2401.3,2401.0,7.035]
[1750985851336,7.75123543,2401.7,2401.0,7.035]
[1750985851337,1.08661405,2401.2,2401.0,7.035]
[1750985851531,1.08661405,2401.1,2401.0,7.035]
[1750985851835,0.83257,2401.2,2401.0,7.035]
[1750985852034,1.08661405,2401.1,2401.0,7.035]
[1750985853640,1.08661405,2401.1,2401.0,8.472]
[1750985853935,1.08661405,2401.1,2401.0,9.30461]
[1750985854137,1.08661405,2401.1,2401.0,8.472]
[1750985854327,1.08661405,2401.1,2401.0,9.30461]
[1750985855135,1.08661405,2401.1,2400.8,3.2078]
[1750985855341,0.83252,2401.3,2401.0,6.968]
[1750985855636,1.08644536,2401.2,2401.1,4.04038]
[1750985855832,1.08644536,2401.2,2401.1,5.47868]
[1750985856433,1.08644536,2401.2,2401.1,10.67083414]
[1750985856840,1.08644536,2401.2,2401.1,5.47868]
[1750985858838,2.45383543,2401.9,2401.6,0.8324]
[1750985859043,2.45383543,2401.9,2401.7,6.968]
[1750985859238,3.2078,2402.0,2401.8,6.968]
[1750985859536,3.2078,2402.0,2401.9,6.968]
[1750985859742,4.04007,2402.0,2401.9,6.968]
[1750985859939,5.41757,2402.0,2401.9,6.968]
[1750985860334,4.5853,2402.0,2401.9,6.968]
[1750985860534,5.41757,2402.0,2401.9,6.968]
[1750985860732,4.5853,2402.0,2401.9,6.968]
[1750985860933,3.2078,2402.0,2401.9,6.968]
[1750985861337,4.5469,2402.0,2401.9,6.968]
[1750985862244,3.2078,2402.0,2401.9,7.8003]
[1750985862839,0.6854,2402.1,2401.9,7.8003]
[1750985863041,0.6854,2402.1,2402.0,0.83227]
[1750985864039,3.2078,2402.4,2402.1,0.83223]
[1750985864345,3.2078,2402.4,2401.9,7.6598]
[1750985864545,4.6824,2402.4,2402.0,0.83224]
[1750985865141,4.6824,2402.4,2402.1,0.83223]
[1750985868043,4.6824,2402.4,2401.9,7.6598]
[1750985868250,5.51454,2402.4,2402.0,0.83225]
[1750985868444,4.6824,2402.4,2402.1,0.83223]
[1750985869549,5.51453,2402.4,2402.1,0.83223]
[1750985869742,4.6824,2402.4,2402.2,0.83219]
[1750985870144,4.6824,2402.4,2402.1,0.83221]
[1750985870544,1.3644,2402.5,2402.4,0.83213]
[1750985870947,2.43883011,2402.5,2402.3,6.967]
[1750985871248,1.07443011,2402.4,2402.3,6.967]
[1750985871443,2.46913011,2402.4,2402.3,6.967]